Cogmind - Beta 15 @@@ ROGUE MODE // 2025.05.14 @ 10:49:58 Player: kaj Result: Destroyed by as-43881 with Assembled Heavy Rifle Performance ------------- Evolutions (0) 0 Regions Visited (2) 400 Robots Destroyed (17) 85 Value Destroyed (332) 332 Prototype IDs (0) 0 Alien Tech Used (0) 0 Bonus (0) 0 TOTAL SCORE: 817 Bonus ------- None Cogmind --------- Core Integrity 0/250 Matter 5/300 Energy 100/100 System Corruption 2% Temperature Cool (0) Movement Core (150) Ox2 Location -10/Mines Parts ------- > --- POWER (1) -------- (None) > --- PROPULSION (2) --- (None) > --- UTILITY (2) ------ (None) > --- WEAPON (2) ------- Improved Light Cannon Rocket Launcher > --- INVENTORY (5) ---- Light Ion Engine Improved Light Cannon Datajack Mining Laser Peak State ------------ > --- POWER ------------ Light Ion Engine > --- PROPULSION ------- Wheel Wheel > --- UTILITY ---------- Improved Heat Sink Huge Storage Unit > --- WEAPON ----------- Improved Light Cannon Improved Light Cannon > --- INVENTORY -------- Light Ion Engine Light Ion Engine Light Treads Light Treads Improved Light Cannon Improved Light Cannon Grenade Launcher Datajack Datajack [Rating: 12] Favorites ----------- Power Light Ion Engine Engine Light Ion Engine Propulsion Wheel Treads Light Treads Leg Aluminum Leg Wheel Wheel Utility Huge Storage Unit Device Improved Heat Sink Storage Huge Storage Unit Weapon Improved Light Cannon Ballistic Gun Assault Rifle Ballistic Cannon Improved Light Cannon Launcher Grenade Launcher Build | -11 -10 -10 ------- Run | Yrd Mat Min Slots Evolved . | . . . Power . | . . . Propulsion . | . . . Utility . | . . . Weapon . | . . . Parts Attached 16 | . 14 2 Power 1 | . 1 . Engine 1 | . 1 . Core . | . . . Reactor . | . . . Propulsion 4 | . 4 . Treads 2 | . 2 . Leg . | . . . Wheel 2 | . 2 . Hover . | . . . Flight . | . . . Utility 4 | . 4 . Device 2 | . 2 . Storage 2 | . 2 . Processor . | . . . Hackware . | . . . Protection . | . . . Artifact . | . . . Weapon 7 | . 5 2 Energy Gun . | . . . Energy Cannon . | . . . Ballistic Gun 1 | . 1 . Ballistic Cannon 4 | . 3 1 Launcher 2 | . 1 1 Special Weapon . | . . . Impact Weapon . | . . . Slashing Weapon . | . . . Piercing Weapon . | . . . Special Melee Weapon . | . . . Unidentified Prototypes . | . . . Parts Lost 8 | . 5 3 Power 2 | . 1 1 Propulsion 2 | . 2 . Utility 1 | . 1 . Weapon 3 | . 1 2 Highest Loss Streak 4 | . 4 3 To Critical Strikes . | . . . Average Backups 8 | . 8 8 Power 1 | . 1 1 Propulsion 1 | . 1 . Utility . | . . . Weapon 2 | . 2 4 Tool/Special . | . . . Unused Backups 10 | . 3 7 Power 2 | . . 2 Propulsion 2 | . 2 . Utility 1 | . 1 . Weapon 3 | . . 3 Tool/Special 2 | . . 2 Average Slot Usage (%) 92 | . 93 74 Engine 13 | . 13 14 Treads 5 | . 4 21 Leg 2 | . 2 . Wheel 19 | . 20 . Device 8 | . 9 . Storage 13 | . 14 10 Ballistic Gun 12 | . 13 . Ballistic Cannon 13 | . 13 21 Peak Build Rating 12 | . 12 9 Average Rating 8 | . 8 7 On Entrance 7 | 6 6 9 Naked Turns . | . . . Heaviest Build 92 | 11 92 31 Greatest Support 40 | 20 40 40 Greatest Overweight (x) 9 | . 9 3 Average Overweight (x) 4 | . 4 . Largest Inventory Capacity 25 | . 25 15 Average Capacity 19 | . 19 13 Most Carried 13 | . 13 11 Average Carried 8 | . 8 8 Final Capacity 15 | 8 15 5 Final Carried 10 | 6 10 4 Class Distribution -------------------- 100% | Mutant Dominant Class ---------------- Mutant | -10/Materials Mutant | -10/Mines Resources | -11 -10 -10 ----------- Run | Yrd Mat Min Matter Collected 419 | 194 225 . Remotely . | . . . Salvage Created 306 | . 306 . Parts 23 | . 23 . Haulers Intercepted 1 | . 1 . Recyclers Shooed . | . . . Parts Field Recycled . | . . . Retrieved Matter . | . . . Parts Self-Destructed . | . . . Prevented . | . . . Kills | -11 -10 -10 ------- Run | Yrd Mat Min Combat Hostiles Destroyed 10 | . 10 . Guns 1 | . 1 . Cannons 3 | . 3 . AOE 6 | . 6 . Classes Destroyed 6 | . 6 . Worker 4 | . 4 . Hauler 1 | . 1 . Operator 1 | . 1 . Watcher 1 | . 1 . Swarmer 3 | . 3 . Grunt 7 | . 7 . Best Kill Streak 7 | . 7 . Combat Bots Only 5 | . 5 . Max Kills in Single Turn 3 | . 3 . Gunslinging . | . . . Exploded 2 | . 2 . Melee . | . . . Uniques/NPCs Destroyed . | . . . Combat | -11 -10 -10 -------- Run | Yrd Mat Min Hostile Shots Fired 91 | . 80 11 Missed 17 | . 17 . Hits 74 | . 63 11 Melee 1 | . . 1 Projectile 73 | . 63 10 AOE 6 | . . 6 Damage Taken 1048 | . 727 321 Core 257 | . 207 50 Absorbed by Shields . | . . . Core Remaining (%) 100 | 100 . . Volleys Fired 45 | . 41 4 Largest 2 | . 2 1 Hottest 66 | . 66 33 Shots Fired 75 | . 71 4 Gun 25 | . 25 . Cannon 36 | . 36 . Launcher 14 | . 10 4 Special . | . . . Kinetic 61 | . 61 . Thermal . | . . . Explosive 14 | . 10 4 Electromagnetic . | . . . Robot Hit Streak 13 | . 13 5 Robot Miss Streak 2 | . 2 . Penetration Max . | . . . Secondary Targets . | . . . Shots Hit Robots 47 | . 44 3 Core Hits 31 | . 29 2 Critical Kills . | . . . Critical Parts Destroyed . | . . . Critical Strikes . | . . . Melee Attacks . | . . . Impact . | . . . Slashing . | . . . Piercing . | . . . Sneak Attacks . | . . . Combat Hostiles . | . . . Follow-up Attacks . | . . . Damage Inflicted 1499 | . 1438 61 Guns 206 | . 206 . Cannons 483 | . 483 . Explosions 788 | . 727 61 Melee . | . . . Ramming 22 | . 22 . Kinetic 689 | . 689 . Thermal . | . . . Explosive 788 | . 727 61 Electromagnetic . | . . . Impact . | . . . Slashing . | . . . Piercing . | . . . Highest Corruption 2 | . 2 2 Average Corruption 1 | . 1 2 Corruption Purged . | . . . Corruption Blocked . | . . . Effects 4 | . 4 . Message Errors 1 | . 1 . Heat Flow Errors 1 | . 1 . Energy Discharges 1 | . 1 . Data Loss (major) 1 | . 1 . Overload Shots . | . . . Overflow Damage 36 | . 36 . Projectiles 4 | . 4 . Explosions 20 | . 20 . Melee 12 | . 12 . Knockbacks 12 | . 12 . Impact . | . . . Kinetic 11 | . 11 . Secondary 1 | . 1 . Self-Inflicted Damage 57 | . 49 8 Shots 3 | . 2 1 Rammed 1 | . 1 . Targets Rammed 1 | . 1 . Kicked . | . . . Crushed . | . . . Highest Temperature 236 | . 236 . Average Temperature 109 | . 109 . Received Heat Transfer 288 | . 288 . Siege Activations . | . . . Martial Activations . | . . . Shielding Activations . | . . . Robots Disrupted . | . . . Combat Hostiles . | . . . Robots Corrupted 1 | . 1 . Combat Hostiles . | . . . Parts Fried 1 | . 1 . Impact Corruptions 2 | . 2 . Robots Melted . | . . . Combat Hostiles . | . . . Parts Melted . | . . . Heat Transferred . | . . . Parts Sabotaged . | . . . Parts Stolen . | . . . Parts Stripped . | . . . Power Chain Reactions . | . . . Alert | -11 -10 -10 ------- Run | Yrd Mat Min Maximum Alert Level . | . . . Low Security (%) 100 | . 100 100 Level 1 . | . . . Level 2 . | . . . Level 3 . | . . . Level 4 . | . . . Level 5 . | . . . High Security . | . . . Max Security . | . . . Peak Influence 106 | . 106 23 Initial 22 | . . 22 Average 42 | . 43 15 Influence Increases 375 | . 360 15 Destroy 0b10 Robot/C 200 | . 200 . Destroy 0b10 Robot/NC 35 | . 35 . Destroy Leader 44 | . 44 . Successful Hack 12 | . 12 . Destroy Structure 54 | . 39 15 Lose Combat Pursuer 30 | . 30 . Influence Decreases 375 | . 303 72 Entered New Map 35 | . . 35 Time Decay 263 | . 253 10 Lost Part 77 | . 50 27 Squads Dispatched 1 | . 1 . Investigation . | . . . Extermination . | . . . Reinforcement 1 | . 1 . Assault . | . . . Garrison . | . . . Intercept . | . . . Searches Triggered . | . . . Construction Impeded . | . . . Haulers Reinforced . | . . . Active Scanning Responses . | . . . Cargo Convoy Interrupts . | . . . Stealth | -11 -10 -10 --------- Run | Yrd Mat Min Distress Signals 1 | . 1 . Communications Jammed . | . . . Distress Signals . | . . . Times Spotted 32 | . 22 10 Peak Tracking Total 6 | . 6 6 Tactical Retreats 1 | . 1 . Traps | -11 -10 -10 ------- Run | Yrd Mat Min Traps Triggered 2 | . 2 . Indirectly . | . . . Trap Hack Attempts . | . . . Triggered . | . . . Disarmed . | . . . Reprogrammed . | . . . Reused . | . . . Traps Extracted . | . . . Installed . | . . . Triggered . | . . . Machines | -11 -10 -10 ---------- Run | Yrd Mat Min Machines Disabled . | . . . Max in Single Turn . | . . . Machines Repaired . | . . . Machines Dismantled . | . . . Machines Sabotaged . | . . . Overloaded Fab Kills . | . . . Hacking | -11 -10 -10 --------- Run | Yrd Mat Min Machines Accessed 4 | . 4 . Terminals 4 | . 4 . Fabricators . | . . . Repair Stations . | . . . Recycling Units . | . . . Scanalyzers . | . . . Garrison Access . | . . . Total Hacks 8 | . 8 . Successful 5 | . 5 . Failed 3 | . 3 . Catastrophic . | . . . Database Lockouts . | . . . Manual 7 | . 7 . Terminals 8 | . 8 . Fabricators . | . . . Repair Stations . | . . . Recycling Units . | . . . Scanalyzers . | . . . Garrison Access . | . . . Terminal Hacks 2 | . 2 . Record 1 | . 1 . Branch Access Points 1 | . 1 . Fabricator Hacks . | . . . Repair Station Hacks . | . . . Recycling Unit Hacks . | . . . Scanalyzer . | . . . Garrison Access Hacks . | . . . Unauthorized Hacks 3 | . 3 . Terminals 3 | . 3 . Botnet 3 | . 3 . Fabricators . | . . . Repair Stations . | . . . Recycling Units . | . . . Scanalyzers . | . . . Garrison Access . | . . . Data Cores Recovered . | . . . Used . | . . . Hacking Detections 2 | . 2 . Full Trace Events . | . . . Feedback Events . | . . . Feedback Blocked . | . . . Robot Schematics Acquired . | . . . Robots Built . | . . . Authchips . | . . . Time . | . . . Total Robot Build Rating . | . . . Part Schematics Acquired . | . . . Parts Built . | . . . Authchips . | . . . Time . | . . . Total Part Build Rating . | . . . Parts Repaired . | . . . Time . | . . . Parts Recycled . | . . . Recycled Matter . | . . . Retrieved Matter . | . . . Retrieved Components . | . . . Parts Scanalyzed . | . . . Part Schematics Acquired . | . . . Parts Damaged . | . . . Bothacking | -11 -10 -10 ------------ Run | Yrd Mat Min Used RIF Installer . | . . . Robots Hacked . | . . . Non-combat . | . . . Combat . | . . . Robot Hacks Applied . | . . . Relay Couplers Released . | . . . Fabnet Peak Effective % . | . . . Robots Rewired . | . . . Allies Hacked . | . . . Hacks Repelled . | . . . Allies | -11 -10 -10 -------- Run | Yrd Mat Min Total Allies . | . . . Largest Group . | . . . Highest-Rated Group . | . . . Highest-Rated Ally . | . . . Total Orders . | . . . Ally Attacks . | . . . Total Damage . | . . . Kills . | . . . Allies Corrupted . | . . . Allies Melted . | . . . Intel | -11 -10 -10 ------- Run | Yrd Mat Min Active Infowar (turns) . | . . . Robot Analysis Total . | . . . Derelict Logs Recovered . | . . . Drone Launches . | . . . Drone Recoveries . | . . . Exploration | -11 -10 -10 ------------- Run | Yrd Mat Min Turns Passed 794 | . 763 31 Spaces Moved 369 | 1 358 10 Core 3 | . . 3 Treads 65 | . 58 7 Legs 40 | 1 39 . Wheels 261 | . 261 . Hover . | . . . Flight . | . . . Fastest Speed 95 | 120 95 150 Average Speed 165 | 120 165 162 Slowest Speed 320 | 120 320 200 Overloaded Moves . | . . . Propulsion Burnouts . | . . . Robots Hopped . | . . . Potential Cave-ins . | . . . Cave-ins Triggered . | . . . Exploration Rate (%) 23 | 2 62 5 Regions Visited 2 Branch Regions 1 Pre-discovered Areas . | . . . Known Exits Taken 1 | . 1 . Unknown Exits Taken 1 | 1 . . Scrap Searched . | . . . Spaces Dug . | . . . Terrain Destroyed 73 | . 36 37 Melee . | . . . Projectile 1 | . 1 . AOE 72 | . 35 37 Terrain Rammed . | . . . Walls Destroyed . | . . . Machines Disabled . | . . . Actions | -11 -10 -10 --------- Run | Yrd Mat Min Total 478 | . 456 22 Wait 17 | . 17 . Move 367 | . 357 10 Hop . | . . . Pick Up 15 | . 14 1 Fast Attach 3 | . 3 . Attach 10 | . 8 2 Detach 1 | . 1 . Swap 7 | . 6 1 Drop 12 | . 8 4 Fire 45 | . 41 4 Melee . | . . . Ram 1 | . 1 . Kick . | . . . Crush . | . . . Escape Stasis . | . . . Rewire . | . . . Trap . | . . . Miscellaneous . | . . . Route ------- -11/Scrapyard -10/Materials (discovered 2 exits: [*Mat] / *Min) -10/Mines History --------- Turn | Location | Event 1 | -11/Scrapyard | Discovered new exit (range 0) 1 | -11/Scrapyard | Entered Materials 178 | -10/Materials | Identified exit to Mines 257 | -10/Materials | Core integrity fell below 50% 303 | -10/Materials | Build established: Mutant 343 | -10/Materials | Discovered new exit (range 6) 636 | -10/Materials | Core integrity fell below 20% 668 | -10/Materials | Lost 4 parts (1p2n1u) 764 | -10/Materials | Entered Mines 765 | -10/Mines | Assembled infested the area 770 | -10/Mines | Assisted by a Guerilla fighting off Assembled 771 | -10/Mines | Received a Rocket Launcher from a helpful Derelict 795 | -10/Mines | Destroyed by as-43881 with Assembled Heavy Rifle Last Messages --------------- 00778_ HV Slug penetrates D-53 Grenadier. 00778_ D-53 Grenadier suffers critical hit (Destroy). 00778_ D-53 Grenadier knocked back. 00780_ HV Slug penetrates D-53 Grenadier. 00783_ The unstable cave ceiling collapses. 00784_ D-53 Grenadier suffers critical hit (Destroy). 00784_ D-53 Grenadier destroyed. 00785_ The unstable cave ceiling collapses. 00785_ Imp. Light Cannon destroyed. 00786_ D-53 Grenadier suffers critical hit (Destroy). 00786_ D-53 Grenadier destroyed. 00787_ Dropped Lgt. Treads. 00788_ HV Slug penetrates Wall. 00789_ Dropped Lrg. Storage Unit. 00790_ Dropped Lgt. Ion Engine. 00790_ HV Slug penetrates Wall. 00791_ The unstable cave ceiling collapses. 00792_ Lgt. Ion Engine destroyed. 00793_ as-15747 suffers critical hit (Destroy). 00793_ as-15747 destroyed. Map ----- +----------------------------------------------------+ | | | | | | | | | | | | | | | | | | | | | | | | | | | | | | | | | | | | | | | ????????????????????????# ###??????????????????? | | ?????????????????###???# ##?????????????????? | | ?????????????????# ### * #??????#??????????? | | ??????????????????? % #????? ##?????????? | | ???????????????????? # % #??? ###???????? | | ?????????????????????# ### #???????? | | ?????????????????????## #@ a a a ????????? | | ?????????????????????# a##???????????????? | | ?????????????????????# *!/ ;#???????????????? | | ?????????????????????# !=a ;#???????????????? | | ?????????????????????# ]= ;##???????????????? | | ?????????????????????# ##????????????????? | | ?????????????????????## #?????????????????? | | ??????????????????????## #?????????????????? | | ???????????????????????# % #????????????????? | | ???????????????????????# h #????????????????? | | ???????????????????????# #????????????????? | | ???????????????????????# ##????????????????? | | ???????????????????????## # ####?????????????????? | | ????????????????????????##? #????????????????????? | | ??????????????????????????? #????????????????????? | | ??????????????????????????? #????????????????????? | | ???????????????????????????#?????????????????????? | | ?????????????????????????????????????????????????? | | ?????????????????????????????????????????????????? | | ?????????????????????????????????????????????????? | | ?????????????????????????????????????????????????? | | ?????????????????????????????????????????????????? | | ?????????????????????????????????????????????????? | | ?????????????????????????????????????????????????? | | ?????????????????????????????????????????????????? | +----------------------------------------------------+ Best States ------------- Heat Dissipation 39 Energy Generation 10 Energy Capacity 125 Matter Stores 294 Matter Capacity 300 Sight Range 16 Terrain Scan Density 10 Evasion (%) 55 Recoil Reduction 2 Item Schematics ----------------- None Robot Schematics ------------------ None Fabricated ------------ Nothing Repaired ---------- Nothing Alien Tech Used ----------------- None Achievements -------------- None Challenges ------------ None Game ------ Seed HypertargetingAmuletFlamer Manual? 0 Play Time 00:09:21 Cumulative 180.5 hours Start 2025.05.14 @ 10:41:08 End 2025.05.14 @ 10:49:58 Sessions 1 Manual Loads 0 Difficulty Rogue Special Mode None Game No. 281 Rogue 281 Adventurer 0 Explorer 0 Win Type - Total 0 Types 0/0/0/0/0/0/0/0/0/0 Lore% 29 Gallery% 52 Achievement% 45 Wizard Run 0 Options --------- Layout 0 ASCII 0 Keyboard 0 Movement Numpad Keybinds 1 Fullscreen 2 Font 18/Terminus Map View 76x50 Zoom Use 0% Tactical HUD 1 Map Filters SATURATION(75) Filters LOW_CONTRAST(23,23,23) Steam 1 RUN: 22a47d12-630b-4061-9bc0-0092af71705f